[Event "Titled Tuesday Blitz July 18 Late 2023"]
[White "Gyulamiryan-koryun"]
[Black "Ortega Ruiz, Jose Miguel"]
[BlackFideId "2209713"]
[WhiteElo "1905"]
[BlackElo "2399"]
[Result "0-1"]
[Round "2"]
[TimeControl "180+2"]
[Date "2023.07.18"]
[WhiteClock "0:00:37"]
[BlackClock "0:00:41"]
[Board "203"]

1. d4 {[%clk 0:02:54]}  Nf6 {[%clk 0:02:59]} 2. c4 {[%clk 0:02:54]}  g6 {[%clk 0:02:59]} 3. Nc3 {[%clk 0:02:54]}  Bg7 {[%clk 0:02:59]} 4. Nf3 {[%clk 0:02:54]}  O-O {[%clk 0:03:00]} 5. e4 {[%clk 0:02:54]}  d6 {[%clk 0:03:00]} 6. Be3 {[%clk 0:02:53]}  Bg4 {[%clk 0:02:54]} 7. h3 {[%clk 0:02:51]}  Bxf3 {[%clk 0:02:54]} 8. Qxf3 {[%clk 0:02:52]}  Nc6 {[%clk 0:02:49]} 9. O-O-O {[%clk 0:02:51]}  e5 {[%clk 0:02:47]} 10. dxe5 {[%clk 0:02:44]}  Nxe5 {[%clk 0:02:46]} 11. Qe2 {[%clk 0:02:44]}  Ned7 {[%clk 0:02:15]} 12. g4 {[%clk 0:02:24]}  Re8 {[%clk 0:02:14]} 13. f3 {[%clk 0:02:23]}  Nb6 {[%clk 0:02:09]} 14. Qd2 {[%clk 0:02:17]}  Nfd7 {[%clk 0:02:06]} 15. Bg5 {[%clk 0:02:12]}  Bf6 {[%clk 0:02:01]} 16. Bxf6 {[%clk 0:02:11]}  Qxf6 {[%clk 0:01:59]} 17. Nd5 {[%clk 0:02:06]}  Nxd5 {[%clk 0:01:59]} 18. exd5 {[%clk 0:02:06]}  Nc5 {[%clk 0:01:45]} 19. h4 {[%clk 0:02:03]}  Qxf3 {[%clk 0:01:39]} 20. Bg2 {[%clk 0:01:53]}  Qe3 {[%clk 0:01:38]} 21. h5 {[%clk 0:01:51]}  Nd3+ {[%clk 0:01:31]} 22. Kb1 {[%clk 0:01:41]}  Nf2 {[%clk 0:01:21]} 23. Qxe3 {[%clk 0:01:38]}  Rxe3 {[%clk 0:01:20]} 24. Rde1 {[%clk 0:01:38]}  Rae8 {[%clk 0:01:14]} 25. Rxe3 {[%clk 0:01:36]}  Rxe3 {[%clk 0:01:14]} 26. Rf1 {[%clk 0:01:35]}  Nd3 {[%clk 0:01:12]} 27. h6 {[%clk 0:01:32]}  Re2 {[%clk 0:01:01]} 28. Bf3 {[%clk 0:01:22]}  Rxb2+ {[%clk 0:00:59]} 29. Ka1 {[%clk 0:01:21]}  Rf2 {[%clk 0:00:53]} 30. Rxf2 {[%clk 0:01:18]}  Nxf2 {[%clk 0:00:54]} 31. Kb2 {[%clk 0:01:17]}  Nd3+ {[%clk 0:00:51]} 32. Kc3 {[%clk 0:01:17]}  Ne5 {[%clk 0:00:50]} 33. Be2 {[%clk 0:01:17]}  f5 {[%clk 0:00:50]} 34. gxf5 {[%clk 0:01:14]}  gxf5 {[%clk 0:00:51]} 35. Kd4 {[%clk 0:01:14]}  b6 {[%clk 0:00:50]} 36. a4 {[%clk 0:01:13]}  a5 {[%clk 0:00:49]} 37. Bd1 {[%clk 0:01:11]}  Kf7 {[%clk 0:00:50]} 38. Bh5+ {[%clk 0:01:08]}  Kf6 {[%clk 0:00:50]} 39. Be8 {[%clk 0:01:07]}  Nf7 {[%clk 0:00:46]} 40. Bxf7 {[%clk 0:01:00]}  Kxf7 {[%clk 0:00:47]} 41. Ke3 {[%clk 0:00:55]}  Kf6 {[%clk 0:00:45]} 42. Kf4 {[%clk 0:00:55]}  Kg6 {[%clk 0:00:45]} 43. Kf3 {[%clk 0:00:48]}  Kxh6 {[%clk 0:00:45]} 44. Kf4 {[%clk 0:00:45]}  Kg6 {[%clk 0:00:45]} 45. Kg3 {[%clk 0:00:46]}  Kg5 {[%clk 0:00:45]} 46. Kf3 {[%clk 0:00:46]}  h5 {[%clk 0:00:45]} 47. Kg3 {[%clk 0:00:46]}  f4+ {[%clk 0:00:45]} 48. Kf3 {[%clk 0:00:45]}  Kf5 {[%clk 0:00:46]} 49. Kg2 {[%clk 0:00:44]}  h4 {[%clk 0:00:47]} 50. Kh3 {[%clk 0:00:43]}  f3 {[%clk 0:00:45]} 51. Kxh4 {[%clk 0:00:44]}  f2 {[%clk 0:00:45]} 52. Kg3 {[%clk 0:00:45]}  f1=Q {[%clk 0:00:44]} 53. Kh4 {[%clk 0:00:43]}  Qxc4+ {[%clk 0:00:41]} 54. Kg3 {[%clk 0:00:37]}  Qxa4 {[%clk 0:00:41]} 0-1


[Site "https://www.chess.com"]

[Event "Titled Tuesday Blitz July 18 Late 2023"]
[White "Fantastic_Power"]
[Black "Nakamura, Hikaru"]
[BlackFideId "2016192"]
[WhiteElo "2736"]
[BlackElo "3249"]
[Result "0-1"]
[Round "3"]
[TimeControl "180+2"]
[Date "2023.07.18"]
[WhiteClock "0:00:01"]
[BlackClock "0:00:40"]
[Board "1"]

1. e4 {[%clk 0:03:00]}  a6 {[%clk 0:03:00]} 2. d4 {[%clk 0:03:00]}  e6 {[%clk 0:03:00]} 3. Nf3 {[%clk 0:02:59]}  d5 {[%clk 0:03:00]} 4. Nc3 {[%clk 0:02:56]}  Nf6 {[%clk 0:02:57]} 5. Bg5 {[%clk 0:02:52]}  Bb4 {[%clk 0:02:49]} 6. e5 {[%clk 0:02:49]}  h6 {[%clk 0:02:49]} 7. Bd2 {[%clk 0:02:22]}  Bxc3 {[%clk 0:02:44]} 8. bxc3 {[%clk 0:02:22]}  Ne4 {[%clk 0:02:45]} 9. Bd3 {[%clk 0:02:23]}  Nxd2 {[%clk 0:02:45]} 10. Qxd2 {[%clk 0:02:24]}  c5 {[%clk 0:02:45]} 11. h4 {[%clk 0:02:21]}  Bd7 {[%clk 0:02:40]} 12. Rb1 {[%clk 0:02:15]}  Bc6 {[%clk 0:02:39]} 13. h5 {[%clk 0:02:10]}  Nd7 {[%clk 0:02:39]} 14. O-O {[%clk 0:02:02]}  Qe7 {[%clk 0:02:33]} 15. Qf4 {[%clk 0:01:55]}  c4 {[%clk 0:02:33]} 16. Be2 {[%clk 0:01:54]}  Qa3 {[%clk 0:02:34]} 17. Qd2 {[%clk 0:01:37]}  b5 {[%clk 0:02:33]} 18. Nh4 {[%clk 0:01:25]}  Nb6 {[%clk 0:02:33]} 19. f4 {[%clk 0:01:20]}  Na4 {[%clk 0:02:34]} 20. Rf3 {[%clk 0:01:20]}  Qxa2 {[%clk 0:02:34]} 21. Rbf1 {[%clk 0:01:21]}  O-O-O {[%clk 0:02:31]} 22. f5 {[%clk 0:01:21]}  Rhe8 {[%clk 0:02:30]} 23. f6 {[%clk 0:01:18]}  gxf6 {[%clk 0:02:30]} 24. Rxf6 {[%clk 0:01:18]}  Qb2 {[%clk 0:02:30]} 25. R1f3 {[%clk 0:01:06]}  a5 {[%clk 0:02:28]} 26. Rxf7 {[%clk 0:01:03]}  b4 {[%clk 0:02:28]} 27. cxb4 {[%clk 0:00:53]}  axb4 {[%clk 0:02:29]} 28. Ng6 {[%clk 0:00:52]}  Rd7 {[%clk 0:02:26]} 29. Rf8 {[%clk 0:00:47]}  Rxf8 {[%clk 0:02:14]} 30. Nxf8 {[%clk 0:00:46]}  Re7 {[%clk 0:02:15]} 31. Ng6 {[%clk 0:00:46]}  Re8 {[%clk 0:02:09]} 32. Rf7 {[%clk 0:00:45]}  Bd7 {[%clk 0:02:06]} 33. Bg4 {[%clk 0:00:34]}  Nc3 {[%clk 0:02:06]} 34. Kh2 {[%clk 0:00:31]}  Nb5 {[%clk 0:01:30]} 35. Ne7+ {[%clk 0:00:29]}  Rxe7 {[%clk 0:01:12]} 36. Rxe7 {[%clk 0:00:29]}  Qxd4 {[%clk 0:01:13]} 37. Qxb4 {[%clk 0:00:27]}  Qxg4 {[%clk 0:01:11]} 38. Rh7 {[%clk 0:00:13]}  Qxh5+ {[%clk 0:01:02]} 39. Kg1 {[%clk 0:00:12]}  Qd1+ {[%clk 0:00:50]} 40. Kh2 {[%clk 0:00:12]}  Qd4 {[%clk 0:00:51]} 41. Qf8+ {[%clk 0:00:04]}  Kc7 {[%clk 0:00:51]} 42. Qg7 {[%clk 0:00:04]}  Qf4+ {[%clk 0:00:52]} 43. g3 {[%clk 0:00:04]}  Qf2+ {[%clk 0:00:49]} 44. Kh1 {[%clk 0:00:04]}  Kb6 {[%clk 0:00:41]} 45. Qxd7 {[%clk 0:00:04]}  Qf5 {[%clk 0:00:42]} 46. Qd8+ {[%clk 0:00:03]}  Kc5 {[%clk 0:00:42]} 47. Qf6 {[%clk 0:00:03]}  Qh3+ {[%clk 0:00:41]} 48. Kg1 {[%clk 0:00:03]}  Qxg3+ {[%clk 0:00:42]} 49. Kh1 {[%clk 0:00:03]}  Qe1+ {[%clk 0:00:39]} 50. Kh2 {[%clk 0:00:02]}  Qe2+ {[%clk 0:00:39]} 51. Kh1 {[%clk 0:00:03]}  Qd1+ {[%clk 0:00:40]} 52. Kh2 {[%clk 0:00:03]}  Qxc2+ {[%clk 0:00:40]} 53. Kg1 {[%clk 0:00:01]}  Qxh7 {[%clk 0:00:40]} 0-1


[Site "https://www.chess.com"]

[Event "Titled Tuesday Blitz July 18 Late 2023"]
[White "Smirnov, Pavel"]
[Black "Mamedov, Rauf"]
[WhiteFideId "4123425"]
[BlackFideId "13401653"]
[WhiteElo "2711"]
[BlackElo "3049"]
[Result "0-1"]
[Round "3"]
[TimeControl "180+2"]
[Date "2023.07.18"]
[WhiteClock "0:00:00"]
[BlackClock "0:00:08"]
[Board "4"]

1. d4 {[%clk 0:03:00]}  d5 {[%clk 0:02:58]} 2. c4 {[%clk 0:03:00]}  e6 {[%clk 0:02:58]} 3. Nf3 {[%clk 0:03:01]}  c5 {[%clk 0:02:58]} 4. cxd5 {[%clk 0:02:59]}  exd5 {[%clk 0:02:58]} 5. Nc3 {[%clk 0:02:51]}  Nc6 {[%clk 0:02:58]} 6. e3 {[%clk 0:02:47]}  Nf6 {[%clk 0:02:57]} 7. Bb5 {[%clk 0:02:46]}  cxd4 {[%clk 0:02:56]} 8. Nxd4 {[%clk 0:02:46]}  Bd7 {[%clk 0:02:55]} 9. Nf3 {[%clk 0:02:46]}  Bd6 {[%clk 0:02:44]} 10. O-O {[%clk 0:02:44]}  O-O {[%clk 0:02:38]} 11. Nxd5 {[%clk 0:02:33]}  Bg4 {[%clk 0:02:33]} 12. Nc3 {[%clk 0:02:18]}  Qc7 {[%clk 0:02:30]} 13. h3 {[%clk 0:02:17]}  Bh5 {[%clk 0:02:30]} 14. Be2 {[%clk 0:02:16]}  Rfd8 {[%clk 0:02:28]} 15. Nd4 {[%clk 0:02:06]}  Bg6 {[%clk 0:02:18]} 16. Ncb5 {[%clk 0:01:45]}  Bh2+ {[%clk 0:02:18]} 17. Kh1 {[%clk 0:01:45]}  Qb8 {[%clk 0:02:19]} 18. Bd2 {[%clk 0:01:31]}  Be5 {[%clk 0:02:15]} 19. Bc3 {[%clk 0:01:25]}  a6 {[%clk 0:02:05]} 20. Na3 {[%clk 0:01:19]}  Ne4 {[%clk 0:02:00]} 21. Nc4 {[%clk 0:01:15]}  Bf6 {[%clk 0:01:58]} 22. Bf3 {[%clk 0:01:09]}  Nxd4 {[%clk 0:01:40]} 23. exd4 {[%clk 0:01:02]}  Qf4 {[%clk 0:01:39]} 24. Qc1 {[%clk 0:00:58]}  Qh4 {[%clk 0:01:30]} 25. Kg1 {[%clk 0:00:40]}  Rac8 {[%clk 0:01:26]} 26. Bxe4 {[%clk 0:00:22]}  Bxe4 {[%clk 0:01:24]} 27. Ne5 {[%clk 0:00:17]}  Bxe5 {[%clk 0:00:35]} 28. dxe5 {[%clk 0:00:17]}  Rd3 {[%clk 0:00:36]} 29. f3 {[%clk 0:00:14]}  Bxf3 {[%clk 0:00:35]} 30. Rxf3 {[%clk 0:00:05]}  Rxf3 {[%clk 0:00:35]} 31. gxf3 {[%clk 0:00:06]}  Qg3+ {[%clk 0:00:35]} 32. Kf1 {[%clk 0:00:05]}  Qxf3+ {[%clk 0:00:34]} 33. Kg1 {[%clk 0:00:04]}  Qg3+ {[%clk 0:00:32]} 34. Kf1 {[%clk 0:00:03]}  Rc4 {[%clk 0:00:31]} 35. Ke2 {[%clk 0:00:02]}  Re4+ {[%clk 0:00:28]} 36. Kd1 {[%clk 0:00:03]}  h5 {[%clk 0:00:13]} 37. Kc2 {[%clk 0:00:02]}  Qxh3 {[%clk 0:00:12]} 38. Kb3 {[%clk 0:00:02]}  Qe6+ {[%clk 0:00:12]} 39. Ka3 {[%clk 0:00:01]}  Qe7+ {[%clk 0:00:09]} 40. b4 {[%clk 0:00:02]}  a5 {[%clk 0:00:09]} 41. Kb2 {[%clk 0:00:02]}  axb4 {[%clk 0:00:09]} 42. Bd2 {[%clk 0:00:02]}  Qxe5+ {[%clk 0:00:09]} 43. Kb3 {[%clk 0:00:02]}  Qd5+ {[%clk 0:00:09]} 44. Kb2 {[%clk 0:00:03]}  Rc4 {[%clk 0:00:09]} 45. Qe1 {[%clk 0:00:02]}  Qd4+ {[%clk 0:00:10]} 46. Kb3 {[%clk 0:00:02]}  Qd3+ {[%clk 0:00:10]} 47. Ka4 {[%clk 0:00:02]}  b3+ {[%clk 0:00:11]} 48. Bb4 {[%clk 0:00:02]}  b2 {[%clk 0:00:10]} 49. Rb1 {[%clk 0:00:02]}  Re4 {[%clk 0:00:08]} 50. Qc3 {[%clk 0:00:00]}  Qxc3 {[%clk 0:00:08]} 0-1


[Site "https://www.chess.com"]

[Event "Titled Tuesday Blitz July 18 Late 2023"]
[White "Martinez Alcantara, Jose Eduardo"]
[Black "Darini, Pouria"]
[WhiteFideId "3805662"]
[BlackFideId "12502200"]
[WhiteElo "3048"]
[BlackElo "2709"]
[Result "1-0"]
[Round "3"]
[TimeControl "180+2"]
[Date "2023.07.18"]
[WhiteClock "0:00:48"]
[BlackClock "0:00:16"]
[Board "5"]

1. e4 {[%clk 0:03:00]}  c5 {[%clk 0:03:00]} 2. Nf3 {[%clk 0:03:01]}  Nc6 {[%clk 0:03:00]} 3. c3 {[%clk 0:03:00]}  d5 {[%clk 0:02:57]} 4. exd5 {[%clk 0:03:00]}  Qxd5 {[%clk 0:02:58]} 5. d4 {[%clk 0:03:01]}  Nf6 {[%clk 0:02:58]} 6. Be3 {[%clk 0:03:00]}  cxd4 {[%clk 0:02:55]} 7. cxd4 {[%clk 0:02:56]}  e6 {[%clk 0:02:55]} 8. Nc3 {[%clk 0:02:57]}  Bb4 {[%clk 0:02:54]} 9. Bd3 {[%clk 0:02:57]}  O-O {[%clk 0:02:46]} 10. O-O {[%clk 0:02:57]}  Qa5 {[%clk 0:02:44]} 11. Rc1 {[%clk 0:02:45]}  Rd8 {[%clk 0:02:43]} 12. Qe2 {[%clk 0:02:42]}  e5 {[%clk 0:01:59]} 13. Bg5 {[%clk 0:01:56]}  Nxd4 {[%clk 0:01:35]} 14. Nxd4 {[%clk 0:01:51]}  Rxd4 {[%clk 0:01:20]} 15. Bxf6 {[%clk 0:01:48]}  gxf6 {[%clk 0:01:21]} 16. Ne4 {[%clk 0:01:30]}  Qd8 {[%clk 0:01:07]} 17. Bb1 {[%clk 0:01:20]}  Bf5 {[%clk 0:01:04]} 18. h4 {[%clk 0:01:07]}  Bf8 {[%clk 0:00:56]} 19. Rc3 {[%clk 0:00:56]}  Kh8 {[%clk 0:00:34]} 20. Qf3 {[%clk 0:00:56]}  Bxe4 {[%clk 0:00:18]} 21. Bxe4 {[%clk 0:00:57]}  f5 {[%clk 0:00:18]} 22. Qxf5 {[%clk 0:00:54]}  Qxh4 {[%clk 0:00:19]} 23. Rh3 {[%clk 0:00:47]}  Qxe4 {[%clk 0:00:18]} 24. Rxh7+ {[%clk 0:00:47]}  Kg8 {[%clk 0:00:16]} 25. Qxf7# {[%clk 0:00:48]} 1-0


[Site "https://www.chess.com"]

[Event "Titled Tuesday Blitz July 18 Late 2023"]
[White "Wieczorek, Oskar"]
[Black "Bortnyk, Olexandr"]
[WhiteFideId "1133950"]
[BlackFideId "14120828"]
[WhiteElo "2705"]
[BlackElo "3023"]
[Result "0-1"]
[Round "3"]
[TimeControl "180+2"]
[Date "2023.07.18"]
[WhiteClock "0:00:00"]
[BlackClock "0:01:41"]
[Board "6"]

1. e4 {[%clk 0:02:52]}  Nf6 {[%clk 0:02:59]} 2. Nc3 {[%clk 0:02:50]}  d5 {[%clk 0:02:57]} 3. exd5 {[%clk 0:02:49]}  Nxd5 {[%clk 0:02:58]} 4. g3 {[%clk 0:02:49]}  g6 {[%clk 0:02:56]} 5. Bg2 {[%clk 0:02:50]}  c6 {[%clk 0:02:57]} 6. Nf3 {[%clk 0:02:50]}  Bg7 {[%clk 0:02:57]} 7. O-O {[%clk 0:02:50]}  Nxc3 {[%clk 0:02:57]} 8. bxc3 {[%clk 0:02:50]}  O-O {[%clk 0:02:57]} 9. Rb1 {[%clk 0:02:50]}  Nd7 {[%clk 0:02:57]} 10. d4 {[%clk 0:02:50]}  Nb6 {[%clk 0:02:58]} 11. Bf4 {[%clk 0:02:46]}  Be6 {[%clk 0:02:57]} 12. Be5 {[%clk 0:02:35]}  Bxa2 {[%clk 0:02:54]} 13. Ra1 {[%clk 0:02:32]}  Bd5 {[%clk 0:02:54]} 14. Bxg7 {[%clk 0:02:32]}  Kxg7 {[%clk 0:02:55]} 15. Re1 {[%clk 0:02:26]}  f6 {[%clk 0:02:55]} 16. Qe2 {[%clk 0:02:24]}  Re8 {[%clk 0:02:55]} 17. h4 {[%clk 0:02:25]}  h5 {[%clk 0:02:53]} 18. Nd2 {[%clk 0:02:09]}  Bxg2 {[%clk 0:02:50]} 19. Kxg2 {[%clk 0:02:09]}  e5 {[%clk 0:02:51]} 20. Nf3 {[%clk 0:01:54]}  e4 {[%clk 0:02:44]} 21. Nd2 {[%clk 0:01:52]}  f5 {[%clk 0:02:44]} 22. Nb3 {[%clk 0:01:41]}  Qf6 {[%clk 0:02:37]} 23. Qe3 {[%clk 0:01:39]}  Nd5 {[%clk 0:02:35]} 24. Qg5 {[%clk 0:01:39]}  Qxg5 {[%clk 0:02:33]} 25. hxg5 {[%clk 0:01:40]}  Nxc3 {[%clk 0:02:34]} 26. Na5 {[%clk 0:01:41]}  Re7 {[%clk 0:02:32]} 27. Nc4 {[%clk 0:01:40]}  a6 {[%clk 0:02:26]} 28. Na5 {[%clk 0:01:27]}  Rd8 {[%clk 0:02:26]} 29. Re3 {[%clk 0:01:24]}  Nd5 {[%clk 0:02:25]} 30. Rb3 {[%clk 0:01:23]}  Rdd7 {[%clk 0:02:25]} 31. c4 {[%clk 0:01:19]}  Nc7 {[%clk 0:02:20]} 32. Rxb7 {[%clk 0:01:19]}  Ne6 {[%clk 0:02:09]} 33. Rxd7 {[%clk 0:01:12]}  Rxd7 {[%clk 0:02:10]} 34. Nxc6 {[%clk 0:01:12]}  Nxg5 {[%clk 0:02:06]} 35. d5 {[%clk 0:01:04]}  Nf3 {[%clk 0:02:03]} 36. Rxa6 {[%clk 0:00:46]}  g5 {[%clk 0:02:00]} 37. Ra8 {[%clk 0:00:23]}  h4 {[%clk 0:01:53]} 38. Nd8 {[%clk 0:00:19]}  Kf6 {[%clk 0:01:49]} 39. Ne6 {[%clk 0:00:18]}  Rb7 {[%clk 0:01:49]} 40. Ra1 {[%clk 0:00:13]}  h3+ {[%clk 0:01:44]} 41. Kf1 {[%clk 0:00:09]}  Rb2 {[%clk 0:01:40]} 42. c5 {[%clk 0:00:07]}  e3 {[%clk 0:01:41]} 43. fxe3 {[%clk 0:00:00]}  h2 {[%clk 0:01:41]} 0-1


[Site "https://www.chess.com"]

[Event "Titled Tuesday Blitz July 18 Late 2023"]
[White "Bluebaum, Matthias"]
[Black "Quintiliano Pinto, Renato R."]
[WhiteFideId "24651516"]
[BlackFideId "2117568"]
[WhiteElo "3017"]
[BlackElo "2702"]
[Result "1-0"]
[Round "3"]
[TimeControl "180+2"]
[Date "2023.07.18"]
[WhiteClock "0:01:18"]
[BlackClock "0:00:07"]
[Board "7"]

1. d4 {[%clk 0:03:00]}  d5 {[%clk 0:02:58]} 2. c4 {[%clk 0:03:00]}  e6 {[%clk 0:02:58]} 3. Nc3 {[%clk 0:03:01]}  Nf6 {[%clk 0:02:58]} 4. cxd5 {[%clk 0:03:02]}  exd5 {[%clk 0:02:58]} 5. Bg5 {[%clk 0:03:02]}  c6 {[%clk 0:02:58]} 6. e3 {[%clk 0:03:03]}  Be7 {[%clk 0:02:57]} 7. Bd3 {[%clk 0:03:03]}  Nbd7 {[%clk 0:02:56]} 8. h3 {[%clk 0:03:04]}  Ne4 {[%clk 0:02:52]} 9. Bxe7 {[%clk 0:03:02]}  Qxe7 {[%clk 0:02:53]} 10. Bxe4 {[%clk 0:03:03]}  dxe4 {[%clk 0:02:53]} 11. Qg4 {[%clk 0:03:03]}  Nf6 {[%clk 0:02:53]} 12. Qxg7 {[%clk 0:03:04]}  Rg8 {[%clk 0:02:54]} 13. Qh6 {[%clk 0:03:04]}  Rxg2 {[%clk 0:02:54]} 14. Nge2 {[%clk 0:03:02]}  Rg6 {[%clk 0:02:44]} 15. Qh4 {[%clk 0:03:01]}  Be6 {[%clk 0:02:37]} 16. Nf4 {[%clk 0:03:01]}  Rg8 {[%clk 0:02:37]} 17. O-O-O {[%clk 0:02:56]}  Bf5 {[%clk 0:02:25]} 18. Rhg1 {[%clk 0:02:39]}  O-O-O {[%clk 0:02:23]} 19. Nh5 {[%clk 0:01:59]}  Nd5 {[%clk 0:02:15]} 20. Qxe7 {[%clk 0:01:59]}  Nxe7 {[%clk 0:02:16]} 21. Nf6 {[%clk 0:02:00]}  Rxg1 {[%clk 0:01:54]} 22. Rxg1 {[%clk 0:02:01]}  Bxh3 {[%clk 0:01:54]} 23. Nxh7 {[%clk 0:01:59]}  f5 {[%clk 0:01:44]} 24. Rg7 {[%clk 0:01:55]}  Nd5 {[%clk 0:01:11]} 25. Nxd5 {[%clk 0:01:54]}  Rxd5 {[%clk 0:01:12]} 26. Ng5 {[%clk 0:01:50]}  Bg4 {[%clk 0:01:11]} 27. Ne6 {[%clk 0:01:51]}  Ra5 {[%clk 0:00:37]} 28. a3 {[%clk 0:01:40]}  b6 {[%clk 0:00:23]} 29. Rc7+ {[%clk 0:01:37]}  Kb8 {[%clk 0:00:24]} 30. Rxc6 {[%clk 0:01:38]}  Rd5 {[%clk 0:00:17]} 31. Nf4 {[%clk 0:01:35]}  Rd7 {[%clk 0:00:16]} 32. Kd2 {[%clk 0:01:35]}  Rh7 {[%clk 0:00:16]} 33. Rf6 {[%clk 0:01:15]}  Rh2 {[%clk 0:00:16]} 34. d5 {[%clk 0:01:15]}  Rxf2+ {[%clk 0:00:15]} 35. Kc3 {[%clk 0:01:16]}  Kc7 {[%clk 0:00:11]} 36. d6+ {[%clk 0:01:17]}  Kd7 {[%clk 0:00:11]} 37. Ng6 {[%clk 0:01:17]}  Re2 {[%clk 0:00:08]} 38. Ne5+ {[%clk 0:01:18]}  Kd8 {[%clk 0:00:07]} 39. Rf8# {[%clk 0:01:18]} 1-0


[Site "https://www.chess.com"]

[Event "Titled Tuesday Blitz July 18 Late 2023"]
[White "Pranav, V"]
[Black "Karttunen, Mika"]
[WhiteFideId "25060783"]
[BlackFideId "502081"]
[WhiteElo "2972"]
[BlackElo "2655"]
[Result "1-0"]
[Round "3"]
[TimeControl "180+2"]
[Date "2023.07.18"]
[WhiteClock "0:01:22"]
[BlackClock "0:00:10"]
[Board "13"]

1. e4 {[%clk 0:03:00]}  e5 {[%clk 0:02:59]} 2. Nf3 {[%clk 0:03:00]}  Nc6 {[%clk 0:02:59]} 3. Bc4 {[%clk 0:03:01]}  Bc5 {[%clk 0:02:59]} 4. c3 {[%clk 0:03:00]}  Nf6 {[%clk 0:02:58]} 5. d3 {[%clk 0:02:59]}  h6 {[%clk 0:02:55]} 6. Nbd2 {[%clk 0:02:58]}  d6 {[%clk 0:02:53]} 7. a4 {[%clk 0:02:55]}  a6 {[%clk 0:02:52]} 8. O-O {[%clk 0:02:53]}  O-O {[%clk 0:02:52]} 9. h3 {[%clk 0:02:52]}  Ba7 {[%clk 0:02:50]} 10. Re1 {[%clk 0:02:52]}  Be6 {[%clk 0:02:49]} 11. a5 {[%clk 0:02:44]}  Re8 {[%clk 0:02:44]} 12. Qe2 {[%clk 0:02:34]}  d5 {[%clk 0:02:38]} 13. exd5 {[%clk 0:02:32]}  Bxd5 {[%clk 0:02:38]} 14. Ne4 {[%clk 0:02:30]}  Nxe4 {[%clk 0:02:25]} 15. dxe4 {[%clk 0:02:28]}  Bxc4 {[%clk 0:02:25]} 16. Qxc4 {[%clk 0:02:29]}  Qe7 {[%clk 0:02:22]} 17. b4 {[%clk 0:02:26]}  Qe6 {[%clk 0:02:16]} 18. Qe2 {[%clk 0:02:25]}  Ne7 {[%clk 0:01:56]} 19. Nh4 {[%clk 0:02:20]}  c5 {[%clk 0:01:49]} 20. b5 {[%clk 0:02:16]}  axb5 {[%clk 0:01:48]} 21. Qxb5 {[%clk 0:02:17]}  c4 {[%clk 0:01:36]} 22. Be3 {[%clk 0:02:13]}  Bxe3 {[%clk 0:01:29]} 23. Rxe3 {[%clk 0:02:14]}  Nc6 {[%clk 0:01:30]} 24. Nf5 {[%clk 0:02:13]}  Ra7 {[%clk 0:01:13]} 25. Rg3 {[%clk 0:01:57]}  g6 {[%clk 0:01:07]} 26. Nxh6+ {[%clk 0:01:57]}  Kh7 {[%clk 0:01:06]} 27. Ng4 {[%clk 0:01:57]}  Rea8 {[%clk 0:01:05]} 28. Kh2 {[%clk 0:01:55]}  Rxa5 {[%clk 0:00:40]} 29. Rxa5 {[%clk 0:01:52]}  Rxa5 {[%clk 0:00:30]} 30. Qxb7 {[%clk 0:01:52]}  Ra7 {[%clk 0:00:30]} 31. Qb6 {[%clk 0:01:49]}  Rd7 {[%clk 0:00:27]} 32. Rf3 {[%clk 0:01:43]}  f5 {[%clk 0:00:20]} 33. exf5 {[%clk 0:01:31]}  gxf5 {[%clk 0:00:21]} 34. Ne3 {[%clk 0:01:31]}  f4 {[%clk 0:00:22]} 35. Ng4 {[%clk 0:01:29]}  Re7 {[%clk 0:00:21]} 36. Qc5 {[%clk 0:01:24]}  Kg7 {[%clk 0:00:20]} 37. g3 {[%clk 0:01:23]}  fxg3+ {[%clk 0:00:18]} 38. Rxg3 {[%clk 0:01:23]}  Kf8 {[%clk 0:00:18]} 39. Rf3+ {[%clk 0:01:22]}  Ke8 {[%clk 0:00:10]} 40. Rf6 {[%clk 0:01:22]} 1-0


[Site "https://www.chess.com"]

[Event "Titled Tuesday Blitz July 18 Late 2023"]
[White "Begmuratov, Alisher"]
[Black "Xiong, Jeffery"]
[WhiteFideId "14203367"]
[BlackFideId "2047640"]
[WhiteElo "2654"]
[BlackElo "2967"]
[Result "0-1"]
[Round "3"]
[TimeControl "180+2"]
[Date "2023.07.18"]
[WhiteClock "0:00:17"]
[BlackClock "0:01:17"]
[Board "15"]

1. c4 {[%clk 0:03:00]}  e5 {[%clk 0:02:59]} 2. g3 {[%clk 0:03:01]}  Be7 {[%clk 0:02:58]} 3. Bg2 {[%clk 0:03:01]}  f5 {[%clk 0:02:58]} 4. d4 {[%clk 0:02:59]}  d6 {[%clk 0:02:59]} 5. dxe5 {[%clk 0:02:38]}  dxe5 {[%clk 0:03:00]} 6. Qxd8+ {[%clk 0:02:38]}  Bxd8 {[%clk 0:03:00]} 7. Nf3 {[%clk 0:02:38]}  e4 {[%clk 0:03:00]} 8. Nd4 {[%clk 0:02:37]}  Bf6 {[%clk 0:02:56]} 9. Nb5 {[%clk 0:02:36]}  Na6 {[%clk 0:02:55]} 10. N1c3 {[%clk 0:02:29]}  Be6 {[%clk 0:02:55]} 11. Nd5 {[%clk 0:01:57]}  Bxd5 {[%clk 0:02:54]} 12. cxd5 {[%clk 0:01:58]}  O-O-O {[%clk 0:02:55]} 13. Nxa7+ {[%clk 0:01:50]}  Kb8 {[%clk 0:02:55]} 14. Nb5 {[%clk 0:01:50]}  Nb4 {[%clk 0:02:44]} 15. O-O {[%clk 0:01:49]}  Nxd5 {[%clk 0:02:44]} 16. Rb1 {[%clk 0:01:44]}  Nge7 {[%clk 0:02:42]} 17. Rd1 {[%clk 0:01:32]}  Rd7 {[%clk 0:02:17]} 18. Bd2 {[%clk 0:01:26]}  Rhd8 {[%clk 0:02:15]} 19. Be1 {[%clk 0:01:26]}  h5 {[%clk 0:02:09]} 20. Rdc1 {[%clk 0:01:20]}  h4 {[%clk 0:02:06]} 21. a4 {[%clk 0:01:17]}  g5 {[%clk 0:02:00]} 22. Na3 {[%clk 0:01:11]}  g4 {[%clk 0:01:57]} 23. b4 {[%clk 0:01:07]}  Nc6 {[%clk 0:01:58]} 24. b5 {[%clk 0:01:01]}  Nd4 {[%clk 0:01:57]} 25. Bf1 {[%clk 0:00:52]}  hxg3 {[%clk 0:01:53]} 26. hxg3 {[%clk 0:00:51]}  Rh8 {[%clk 0:01:51]} 27. Nc2 {[%clk 0:00:29]}  Rdh7 {[%clk 0:01:50]} 28. Bg2 {[%clk 0:00:28]}  Nxe2+ {[%clk 0:01:49]} 29. Kf1 {[%clk 0:00:29]}  Nxc1 {[%clk 0:01:26]} 30. Rxc1 {[%clk 0:00:30]}  Rd7 {[%clk 0:01:22]} 31. a5 {[%clk 0:00:29]}  Rhd8 {[%clk 0:01:22]} 32. Kg1 {[%clk 0:00:23]}  Nc3 {[%clk 0:01:16]} 33. Bxc3 {[%clk 0:00:20]}  Bxc3 {[%clk 0:01:17]} 34. Ne3 {[%clk 0:00:17]}  Bd2 {[%clk 0:01:17]} 0-1


[Site "https://www.chess.com"]